bitfinex-derivatives/quotes_ETHF0:USTF0_20240923
["timestamp","ask_amount","ask_price","bid_price","bid_amount"]
[1727105728622,1.31138,2668.8,2668.7,3.2078]
[1727105728916,1.31142,2668.7,2668.6,0.3707]
[1727105729106,2.40619047,2668.7,2668.3,3.2078]
[1727105729306,0.37473,2668.4,2668.3,3.2078]
[1727105729519,0.37473,2668.4,2668.3,3.58255]
[1727105729713,2.44937427,2668.4,2668.3,3.58255]
[1727105729913,1.84435437,2668.4,2668.3,3.2078]
[1727105730321,0.56221565,2668.4,2668.3,3.2078]
[1727105730535,1.92344809,2668.6,2668.3,3.2078]
[1727105730710,0.97969909,2668.6,2668.5,1.31152]
[1727105730915,1.35437909,2668.8,2668.7,0.37469]
[1727105731225,0.37468,2668.8,2668.7,0.37469]
[1727105731411,1.35432767,2668.8,2668.7,0.37469]
[1727105731611,1.35432767,2668.8,2668.7,0.3898]
[1727105731821,1.84429056,2668.8,2668.7,0.3898]
[1727105732013,1.35433675,2668.8,2668.7,0.3898]
[1727105732314,1.84429056,2668.8,2668.7,0.3898]
[1727105732523,1.84428056,2668.9,2668.8,0.37468]
[1727105732920,0.37468,2668.8,2668.7,0.3898]
[1727105733114,1.35440645,2668.8,2668.7,0.76449]
[1727105734025,0.38552645,2668.8,2668.7,2.63795]
[1727105734209,2.39718279,2669.3,2668.8,0.9367]
[1727105734210,1.46961056,2669.3,2668.8,0.9367]
[1727105734411,1.46961056,2669.4,2669.3,0.37461]
[1727105734615,1.84422056,2669.4,2669.3,0.37461]
[1727105734821,0.37461,2669.4,2669.3,0.37461]
[1727105735015,1.84422056,2669.4,2669.3,0.37461]
[1727105735315,0.37461,2669.4,2669.3,0.37461]
[1727105736010,1.46961056,2669.5,2669.4,0.37459]
[1727105736212,1.46961056,2669.9,2669.5,0.37458]
[1727105736424,1.46961056,2670.2,2669.8,4.14413]
[1727105736716,2.31834809,2670.3,2670.2,0.37448]
[1727105736717,1.46961056,2670.3,2670.2,0.37448]
[1727105736920,1.92344809,2670.5,2670.4,0.37445]
[1727105736921,1.46961056,2670.5,2670.4,0.37445]
[1727105737124,1.46961056,2670.5,2670.1,4.14403]
[1727105737125,4.67741056,2670.6,2670.2,0.3908]
[1727105737416,3.2078,2670.6,2670.5,0.37444]
[1727105737612,1.46961056,2670.8,2670.2,0.7572]
[1727105737811,0.37447,2670.3,2670.2,0.7572]
[1727105738218,0.37446,2670.4,2670.2,0.7572]
[1727105738409,0.37445,2670.5,2670.2,0.7572]
[1727105738618,0.37445,2670.4,2670.2,0.76527]
[1727105738819,2.40568056,2670.6,2670.2,0.76527]
[1727105739120,2.40568056,2670.6,2670.2,0.37447]
[1727105739323,1.92344809,2670.8,2669.7,0.93636]
[1727105739324,0.37448,2670.2,2669.8,3.2078]
[1727105739517,2.51,2670.4,2669.8,3.2078]
[1727105739823,0.37453,2669.9,2669.7,0.37454]
[1727105740024,0.37455,2669.8,2669.6,0.37456]
[1727105740319,0.37456,2669.6,2669.5,3.2078]
[1727105740518,0.37461,2669.4,2669.3,0.37461]
[1727105740720,0.37454,2669.8,2669.2,0.3652]
[1727105741041,1.84291056,2670.1,2669.5,3.2078]
[1727105741216,0.37452,2670.0,2669.9,0.37452]
[1727105741720,0.7478,2670.1,2669.6,0.93642]
[1727105741916,0.7478,2670.1,2669.9,0.37451]
[1727105742224,0.37451,2670.0,2669.9,0.37451]
[1727105742530,0.93628,2670.0,2669.6,0.37456]
[1727105742827,0.93628,2670.0,2669.5,3.58237]
[1727105742828,0.37456,2669.7,2669.5,3.58237]
[1727105743022,0.37456,2669.7,2669.5,3.2078]
[1727105743220,0.37456,2669.7,2669.5,3.58237]
[1727105745035,0.3733,2670.1,2669.5,3.2078]
[1727105745219,0.37451,2670.0,2669.9,0.37452]
[1727105745419,0.37453,2669.9,2669.8,0.37453]
[1727105746522,0.37452,2670.0,2669.9,0.37452]
[1727105747920,0.9363,2670.0,2669.5,3.2078]
[1727105748237,0.37453,2669.9,2669.7,0.37454]
[1727105748422,0.37452,2670.0,2669.9,0.37452]
[1727105748618,1.30956,2670.1,2669.8,0.37453]
[1727105748619,0.37453,2669.9,2669.8,0.37453]
[1727105749315,0.37452,2670.0,2669.9,0.37452]
[1727105749722,0.93631,2669.9,2669.5,3.2078]
[1727105750221,1.30957,2670.1,2669.7,0.37455]
[1727105750525,0.37456,2669.6,2669.5,3.2078]
[1727105751224,0.3746,2669.4,2669.3,0.3746]
[1727105751528,0.9364,2669.7,2669.3,0.3746]
[1727105751724,0.9364,2669.7,2669.4,0.37459]
[1727105751725,0.37458,2669.5,2669.4,0.37459]
[1727105752923,0.37458,2669.5,2669.4,3.58239]
[1727105753423,0.37458,2669.5,2669.4,0.37459]
[1727105753727,0.37459,2669.4,2669.3,0.3746]
[1727105754332,0.9364,2669.7,2669.2,0.3652]
[1727105754630,0.3746,2669.4,2669.3,0.3746]
[1727105754824,0.93643,2669.6,2669.2,0.3652]
[1727105755129,0.3746,2669.4,2669.3,0.3746]
[1727105755637,1.31913,2669.9,2669.2,0.3652]
[1727105755638,0.37461,2669.3,2669.2,0.73981]
[1727105756317,0.37461,2669.3,2669.2,0.3652]
[1727105757530,0.37462,2669.2,2669.1,3.58243]
[1727105757726,0.37,2669.5,2669.1,3.2078]
[1727105757925,1.46961056,2670.1,2669.4,3.2078]
[1727105758127,1.46961056,2670.1,2670.0,1.31079]
[1727105758321,1.46961056,2670.6,2670.2,0.93621]
[1727105758523,1.46961056,2670.7,2670.6,0.37442]
[1727105759332,0.37441,2670.7,2670.6,0.37442]
[1727105759532,1.46961056,2670.8,2670.3,0.3593]
[1727105759725,0.37442,2670.7,2670.6,0.37441]
[1727105760131,0.3744,2670.8,2670.4,3.2078]
[1727105760326,1.46961056,2670.9,2670.4,3.2078]
[1727105760327,1.46961056,2670.9,2670.8,0.3744]
[1727105760566,1.46961056,2671.2,2670.8,6.0]
[1727105760728,0.37435,2671.2,2670.9,0.3765]
[1727105760935,1.46961056,2671.2,2670.9,0.3765]
[1727105761124,2.39718279,2671.5,2670.7,3.5822]
[1727105761125,0.37439,2670.9,2670.7,3.5822]
[1727105761328,0.37444,2670.5,2670.4,3.2078]
[1727105761526,0.3745,2670.8,2670.4,3.2078]
[1727105761728,1.46961056,2670.9,2670.5,0.37443]
[1727105761934,0.37442,2670.7,2670.5,0.37443]
[1727105762135,1.84401056,2670.8,2670.6,0.37442]
[1727105762339,1.92344809,2671.0,2670.4,3.58224]
[1727105762340,0.37442,2670.7,2670.4,3.58224]
[1727105762635,1.46961056,2670.9,2670.5,0.37443]
[1727105762946,1.46961056,2670.9,2670.4,3.2078]
[1727105762947,0.37442,2670.7,2670.4,3.58224]
[1727105763438,0.37442,2670.7,2670.5,0.37444]
[1727105763644,2.85939809,2671.0,2670.8,0.3744]
[1727105763645,1.46961056,2670.9,2670.8,0.3744]
[1727105763839,1.92344809,2671.0,2670.7,3.5822]
[1727105763840,1.46961056,2671.0,2670.7,3.5822]
[1727105764037,0.3744,2670.9,2670.7,3.5822]
[1727105764831,1.46961056,2671.0,2670.7,3.5822]
[1727105765234,0.37438,2670.9,2670.7,3.5822]
[1727105765431,2.21611056,2671.1,2670.7,3.5822]
[1727105765736,0.37437,2671.0,2670.7,3.2078]
[1727105765938,1.46961056,2671.1,2671.0,0.37437]
[1727105766141,1.46961056,2671.5,2671.0,6.9518]
[1727105766354,1.46961056,2671.7,2671.6,0.37428]
[1727105766641,1.92344809,2671.8,2671.7,0.37427]
[1727105766642,1.46961056,2671.8,2671.7,0.37427]
[1727105766831,1.92344809,2672.0,2671.8,0.37426]
[1727105766832,1.46961056,2671.9,2671.8,0.37426]
[1727105767039,0.37423,2672.0,2671.5,0.7665]
[1727105767040,1.83757217,2672.0,2671.5,0.7665]
[1727105767341,0.37427,2671.8,2671.6,0.37428]
[1727105767540,1.83758217,2671.9,2671.7,0.37427]
[1727105767739,1.92344809,2672.1,2671.9,0.37424]
[1727105767740,1.46333217,2672.0,2671.9,0.37424]
[1727105768050,2.29766809,2672.1,2672.0,0.37423]
[1727105768051,1.46333217,2672.1,2672.0,0.37423]
[1727105768239,1.83754217,2672.1,2671.9,0.37423]
[1727105768434,0.37421,2672.1,2672.0,0.37423]
[1727105768634,1.46333217,2672.2,2671.8,0.37425]
[1727105768833,1.46235273,2672.1,2671.6,3.2078]
[1727105769036,1.46235273,2672.1,2671.6,3.58207]
[1727105769241,1.46235273,2671.8,2671.7,0.37427]
[1727105769634,0.37427,2671.7,2671.6,3.2078]
[1727105769843,2.85900809,2672.1,2671.3,3.58212]
[1727105769844,1.46235273,2671.9,2671.3,3.58212]
[1727105770039,0.37428,2671.7,2671.5,0.37429]
[1727105770237,0.37429,2671.6,2671.4,0.3743]
[1727105770442,1.83664273,2671.6,2671.4,0.3743]
[1727105770637,0.3743,2671.5,2671.3,3.58212]
[1727105771145,0.37431,2671.4,2671.3,3.2078]
[1727105772148,1.46235273,2671.6,2671.1,0.3656]
[1727105772436,0.37435,2671.1,2671.0,3.2078]
[1727105773343,0.37439,2670.9,2670.7,0.74001]
[1727105773550,0.93585,2671.3,2670.8,0.37439]
[1727105773737,0.3744,2670.8,2670.7,0.74]
[1727105773937,0.3744,2670.8,2670.7,0.3656]
[1727105774151,0.37438,2671.0,2670.8,0.37439]
[1727105774338,0.93586,2671.2,2670.6,3.2078]
[1727105774339,0.37441,2670.7,2670.6,3.2078]
[1727105775243,0.37442,2670.7,2670.5,0.37443]
[1727105775555,0.37442,2670.6,2670.4,0.37444]
[1727105775759,0.37442,2670.6,2670.3,3.5988]
[1727105776059,0.37445,2670.4,2670.3,3.5988]
[1727105776240,0.93603,2670.7,2670.0,3.5823]
[1727105776441,1.31013,2670.7,2670.0,3.2078]
[1727105776640,1.31013,2670.7,2670.2,0.37447]
[1727105776641,0.37446,2670.4,2670.2,0.37447]
[1727105777041,0.37447,2670.3,2670.2,0.37447]
[1727105777852,0.37455,2669.7,2669.6,0.3848]
[1727105778045,0.37454,2669.8,2669.6,0.37456]
[1727105778242,1.32001,2670.2,2669.5,3.2078]
[1727105778243,0.37456,2669.6,2669.5,3.2078]
[1727105778642,3.5819,2670.1,2669.5,3.2078]
[1727105778643,0.3741,2670.1,2669.5,3.2078]
[1727105778844,0.37453,2669.9,2669.6,0.37456]
[1727105779044,0.37453,2669.9,2669.7,0.37455]
[1727105779651,0.37454,2669.8,2669.6,0.37456]
[1727105780041,1.31037,2670.1,2669.5,3.58237]
[1727105780243,0.37456,2669.7,2669.5,3.58237]
[1727105780947,0.37456,2669.6,2669.5,3.2078]
[1727105781152,0.37456,2669.6,2668.7,1.12029021]
[1727105781153,2.51,2669.6,2668.6,3.3958]
[1727105781346,0.37467,2668.9,2668.7,0.37469]
[1727105781747,0.37464,2669.1,2668.8,0.37467]
[1727105781951,0.37463,2669.2,2668.9,3.2078]
[1727105782151,0.37463,2669.2,2669.0,0.37464]
[1727105782652,0.37465,2669.0,2668.9,3.2078]
[1727105782846,1.30281,2669.4,2668.9,3.58246]
[1727105782847,0.37464,2669.1,2668.9,3.58246]
[1727105783155,1.30281,2669.4,2668.9,3.2078]
[1727105783156,0.3663,2669.4,2668.9,3.2078]
[1727105783346,0.3663,2669.4,2669.0,0.37465]
[1727105783347,0.37463,2669.2,2669.0,0.37465]
[1727105783547,0.3663,2669.4,2668.9,3.2078]
[1727105783743,0.37461,2669.3,2668.9,3.2078]
[1727105783947,0.37461,2669.3,2669.1,0.37463]
[1727105784151,0.3663,2669.4,2668.9,3.2078]
[1727105784548,0.37463,2669.2,2669.0,0.37464]
[1727105784845,0.3663,2669.4,2668.9,3.2078]
[1727105785044,0.37465,2669.1,2668.9,3.2078]
[1727105785252,0.37463,2669.2,2668.9,3.58245]
[1727105785452,1.30281,2669.4,2668.9,3.2078]
[1727105785650,0.37463,2669.2,2669.0,0.37465]
[1727105785848,0.37456,2669.7,2669.5,0.37458]
[1727105786053,2.85975809,2670.0,2669.0,0.93663]
[1727105786054,12.34735273,2669.9,2669.4,3.2078]
[1727105786352,10.885,2669.9,2669.4,3.2078]
[1727105786552,10.885,2669.9,2669.7,3.58234]
[1727105786553,11.25953,2669.9,2669.7,3.58234]
[1727105787148,0.77051,2670.0,2669.7,3.2078]
[1727105787344,1.46235273,2670.3,2670.2,0.37448]
[1727105787553,1.46235273,2670.7,2670.2,3.2078]
[1727105787856,1.83676273,2670.8,2670.6,0.37442]
[1727105788450,1.83674273,2670.9,2670.8,0.3744]
[1727105788654,0.37439,2670.9,2670.7,0.3744]
[1727105788957,0.37441,2670.8,2670.5,3.2078]
[1727105789155,0.3744,2670.8,2670.5,3.58223]
[1727105789361,0.3744,2670.8,2670.3,0.3628]
[1727105789559,1.83674273,2670.9,2670.3,0.3628]
[1727105789855,0.3744,2670.8,2670.6,0.37442]
[1727105790054,1.85835273,2671.0,2670.5,3.2078]
[1727105790249,1.46235273,2670.9,2670.5,3.2078]
[1727105790454,1.46235273,2671.0,2670.5,3.2078]
[1727105790752,1.83672273,2671.0,2670.4,3.2078]
[1727105791159,1.83672273,2671.0,2670.8,0.37439]
[1727105791662,1.83672273,2671.0,2670.9,0.37438]
[1727105791850,1.83672273,2671.0,2670.8,0.37439]
[1727105792053,0.37437,2671.0,2670.9,0.37438]
[1727105792463,1.83672273,2671.0,2670.9,0.37438]
[1727105792757,1.83672273,2671.0,2670.8,0.37439]
[1727105792952,1.83673273,2671.0,2670.9,0.37438]
[1727105793156,1.83673273,2671.0,2670.8,0.37439]
[1727105793356,1.83673273,2671.0,2670.7,3.2078]
[1727105793557,1.46235273,2671.0,2670.9,0.37438]
[1727105794263,1.46235273,2671.1,2670.9,0.37438]
[1727105794463,0.37437,2671.0,2670.9,0.37438]
[1727105794663,1.83672273,2671.0,2670.9,0.37438]
[1727105795461,0.37437,2671.0,2670.9,0.37438]
[1727105795670,1.46235273,2671.1,2671.0,0.37437]
[1727105795961,1.46235273,2671.2,2671.1,0.37435]
[1727105796174,1.46235273,2671.3,2671.2,0.37434]
[1727105796352,0.37432,2671.4,2671.3,0.37433]
[1727105796553,0.37433,2671.3,2671.2,0.37433]
[1727105796859,1.83668273,2671.3,2671.2,0.37433]
[1727105797064,0.93586,2671.2,2670.7,3.2078]
[1727105797265,2.39821273,2671.2,2670.7,3.2078]
[1727105797454,0.37438,2670.9,2670.8,0.3744]
[1727105797660,2.39821273,2671.2,2670.7,3.2078]
[1727105797661,0.37437,2671.0,2670.9,0.37438]
[1727105798161,0.37437,2671.0,2670.9,3.744]
[1727105798463,0.37437,2671.0,2670.9,4.11838]
[1727105800070,0.37436,2671.1,2671.0,0.37436]
[1727105800653,1.83670273,2671.2,2671.1,0.37435]
[1727105800856,0.37435,2671.2,2671.1,0.37435]
[1727105801964,2.85925809,2671.4,2671.0,3.58216]
[1727105801965,0.37435,2671.1,2671.0,3.58216]
[1727105803159,1.46235273,2671.5,2671.0,15.4618]
[1727105803362,0.3743,2671.5,2671.4,3.5821]
[1727105803858,0.3743,2671.5,2671.4,7.3253]
[1727105804164,0.93566,2671.8,2671.4,7.3253]
[1727105804165,0.37429,2671.6,2671.5,0.37429]
[1727105804364,0.93563,2671.9,2671.4,3.2078]
[1727105804559,0.3743,2671.5,2671.4,3.2078]
[1727105804964,0.37432,2671.4,2671.2,0.37433]
[1727105805166,0.93568,2671.7,2671.2,0.37433]
[1727105805353,0.37433,2671.3,2671.2,0.37433]
[1727105806364,0.37434,2671.2,2671.1,3.2078]
[1727105807861,0.37434,2671.3,2671.1,3.58215]
[1727105808060,0.37434,2671.2,2671.1,3.58215]
[1727105808263,0.37434,2671.3,2671.1,3.58215]
[1727105808470,0.37434,2671.2,2671.1,3.2078]
[1727105809471,0.37437,2671.0,2670.9,0.37437]
[1727105809768,0.37436,2671.1,2670.9,0.37437]
[1727105810063,0.93583,2671.3,2671.0,0.37437]
[1727105810259,0.93583,2671.3,2670.8,5.2691]
[1727105810260,0.7549,2671.4,2670.8,5.2691]
[1727105810461,0.37434,2671.2,2671.1,0.37435]
[1727105811795,0.7549,2671.4,2671.1,3.744]
[1727105811796,1.12922,2671.4,2671.1,3.744]
[1727105811965,4.56925,2671.9,2671.3,4.14362]
[1727105812168,4.56925,2671.9,2671.7,0.37427]
[1727105812169,0.37427,2671.8,2671.7,0.37427]
[1727105812674,0.37427,2671.8,2671.7,4.11747]
[1727105812870,0.37427,2671.8,2671.6,3.2078]
[1727105812871,0.37427,2671.7,2671.6,3.58208]
[1727105813270,0.37427,2671.7,2671.6,7.32528]
[1727105813975,0.37427,2671.7,2671.6,3.58208]
[1727105814468,1.71166,2672.1,2671.7,0.37427]
[1727105814661,0.37427,2671.8,2671.6,3.58208]
[1727105814866,0.37425,2671.9,2671.6,3.2078]
[1727105815066,0.37425,2671.9,2671.7,0.37426]
[1727105815261,0.37426,2671.8,2671.7,0.37426]
[1727105815665,0.37427,2671.7,2671.6,3.58207]
[1727105816067,0.37427,2671.7,2671.6,7.32527]
[1727105816473,0.37427,2671.7,2671.6,3.58207]
[1727105817163,1.30995,2671.7,2671.6,3.2078]
[1727105817363,0.37432,2671.4,2671.3,3.2078]
[1727105817575,1.46235273,2672.2,2671.4,0.93578]
[1727105817873,1.92344809,2672.3,2671.4,0.93578]
[1727105817874,0.3785,2672.1,2671.9,0.37424]
[1727105818081,0.3785,2672.1,2671.7,3.2078]
[1727105818271,0.3785,2672.1,2672.0,0.37423]
[1727105819169,0.3785,2672.1,2671.9,0.37424]
[1727105819170,0.37423,2672.0,2671.9,0.37424]
[1727105819570,0.75272,2672.1,2671.9,0.37424]
[1727105819975,0.3748,2672.3,2672.0,3.2078]
[1727105820173,3.2078,2673.0,2672.1,0.37421]
[1727105820174,0.37421,2672.2,2672.1,0.37421]
[1727105820373,0.93543,2672.5,2672.2,0.3742]
[1727105820571,0.37417,2672.4,2672.2,0.3742]
[1727105821082,0.37419,2672.3,2672.1,0.37421]
[1727105821383,0.3742,2672.2,2672.1,0.37421]
[1727105821582,0.3742,2672.2,2672.0,3.2078]
[1727105821583,0.37419,2672.3,2672.0,3.2078]
[1727105821883,0.3741,2672.9,2672.8,0.37411]
[1727105822178,0.37409,2673.0,2672.8,0.37411]
[1727105822384,0.7548,2673.2,2672.6,3.2078]
[1727105822578,0.7548,2673.2,2673.1,0.37407]
[1727105822894,0.37402,2673.6,2673.2,0.37405]
[1727105823086,0.7548,2673.7,2673.0,5.7178]
[1727105823381,0.3671,2673.9,2673.0,5.7178]
[1727105823382,0.37393,2674.2,2673.7,0.37398]
[1727105823571,0.37396,2674.0,2673.5,8.1018]
[1727105823777,3.5885,2674.3,2673.5,8.1018]
[1727105823977,0.37393,2674.2,2673.5,8.1018]
[1727105824181,0.75461,2674.3,2673.5,8.1018]
[1727105824375,0.37392,2674.2,2673.8,3.2078]
[1727105824679,0.3741,2674.5,2674.2,0.37391]
[1727105824883,3.58167,2674.6,2674.1,3.2078]
[1727105824884,3.2078,2674.6,2674.1,3.2078]
[1727105825482,0.37389,2674.5,2674.1,3.2078]
[1727105825685,0.37388,2674.5,2674.1,3.2078]
[1727105825991,3.2078,2674.6,2674.1,3.2078]
[1727105826177,3.2078,2674.6,2673.8,3.2078]
[1727105826382,0.37385,2674.8,2674.1,3.2078]
[1727105826591,0.37385,2674.7,2674.2,0.37391]
[1727105826785,0.3864,2675.0,2674.1,3.58173]
[1727105826989,0.3864,2675.0,2674.1,3.2078]
[1727105827181,0.37383,2674.9,2674.4,3.2078]
[1727105827379,3.2078,2675.4,2674.6,2.51]
[1727105827684,0.37378,2675.2,2674.8,3.2078]
[1727105827881,0.37383,2674.9,2674.4,3.2078]
[1727105828083,0.37382,2675.0,2674.4,3.58168]
[1727105828386,4.14221,2675.4,2674.4,3.2078]
[1727105828387,0.93442,2675.3,2674.4,3.2078]
[1727105828582,0.37383,2674.9,2674.4,3.2078]
[1727105828786,0.37383,2674.9,2674.4,3.58169]
[1727105828987,0.37384,2674.8,2674.4,3.58169]
[1727105829476,0.37385,2674.7,2674.4,3.2078]
[1727105829683,0.93449,2675.1,2674.4,3.2078]
[1727105829894,0.37384,2674.8,2674.4,3.58168]
[1727105830085,0.37385,2674.7,2674.4,3.2078]
[1727105830296,0.93449,2675.1,2674.4,3.58169]
[1727105830297,0.37384,2674.8,2674.4,3.58169]
[1727105830589,0.37385,2674.7,2674.4,3.2078]
[1727105830986,0.37385,2674.7,2674.4,3.58169]
[1727105831487,0.37385,2674.7,2674.4,3.2078]
[1727105832184,3.2078,2675.3,2674.4,3.2078]
[1727105832485,0.93449,2675.1,2674.4,3.58169]
[1727105832694,0.37386,2674.7,2674.4,3.58169]
[1727105832889,0.37388,2674.5,2674.4,3.2078]
[1727105833083,0.37389,2674.4,2674.1,8.85913]
[1727105833410,0.9347,2674.5,2673.8,3.58177]
[1727105833584,0.37393,2674.2,2673.8,3.2078]
[1727105833786,0.37393,2674.2,2673.9,0.37395]
[1727105834485,0.3739,2674.4,2674.1,0.37393]
[1727105834790,1.69136,2674.7,2673.8,3.2078]
[1727105834791,0.9347,2674.5,2673.8,3.2078]
[1727105834993,0.37392,2674.2,2673.9,0.37396]
[1727105835285,0.37392,2674.2,2673.9,0.37395]
[1727105835787,0.37389,2674.5,2674.2,0.37391]
[1727105836095,0.37389,2674.5,2674.3,0.3739]
[1727105836386,0.7567,2674.7,2674.3,4.1131]
[1727105836387,0.37388,2674.6,2674.3,4.1131]
[1727105836581,0.37388,2674.5,2674.3,0.3739]
[1727105836784,0.3853,2674.7,2673.9,0.37395]
[1727105836785,0.93467,2674.6,2673.9,0.37395]
[1727105837082,0.93467,2674.6,2673.8,3.2078]
[1727105837086,0.393,2674.6,2673.8,3.2078]
[1727105837281,0.393,2674.6,2673.8,3.58178]
[1727105837282,0.37395,2674.0,2673.8,3.58178]
[1727105837585,0.9347,2674.5,2673.8,3.2078]
[1727105837783,0.37396,2673.9,2673.8,3.2078]
[1727105838985,0.37396,2674.0,2673.8,3.58177]
[1727105839187,0.93477,2674.3,2673.8,3.58177]
[1727105839188,0.93473,2674.5,2673.8,3.2078]
[1727105839385,0.37393,2674.2,2673.9,0.37395]
[1727105839590,0.37393,2674.2,2674.0,0.37394]
[1727105840291,0.7604,2674.6,2673.8,3.2078]
[1727105840486,0.37401,2673.6,2673.4,3.94842]
[1727105840684,0.37401,2673.6,2673.5,0.37402]
[1727105840885,0.93481,2674.2,2673.4,3.5744]
[1727105841096,0.37402,2673.5,2673.4,3.2078]
[1727105841287,0.37407,2673.2,2673.0,7.76508]
[1727105841493,0.37402,2673.5,2673.0,7.391]
[1727105841694,0.37407,2673.2,2673.0,7.391]
[1727105841985,3.2078,2674.1,2673.0,7.391]
[1727105842185,10.885,2674.7,2673.7,2.51]
[1727105842186,0.93467,2674.6,2673.7,2.51]
[1727105842386,3.2078,2674.7,2674.0,0.37395]
[1727105842582,0.37387,2674.6,2674.3,0.3739]
[1727105843492,0.37387,2674.6,2674.2,3.2078]
[1727105843493,3.2078,2674.7,2674.5,0.37388]
[1727105843695,0.37385,2674.7,2674.4,0.37388]
[1727105843889,0.9346,2674.8,2674.2,3.5856]
[1727105844195,0.37389,2674.4,2674.2,3.5856]
[1727105844384,0.7668,2674.9,2674.2,3.5856]
[1727105844385,1.70138,2674.9,2674.2,3.5856]
[1727105844988,0.37386,2674.7,2674.3,0.37389]
[1727105845184,1.70138,2674.9,2674.2,3.5856]
[1727105845388,0.37387,2674.6,2674.3,0.3739]
[1727105845586,0.37391,2674.3,2674.2,3.2078]
[1727105845786,3.9746,2674.9,2674.2,3.2078]
[1727105845988,0.37391,2674.3,2674.2,3.2078]
[1727105846292,0.93463,2674.7,2673.9,0.74575]
[1727105846293,0.37393,2674.2,2673.9,0.74575]
[1727105846494,0.37396,2674.0,2673.8,3.2078]
[1727105846696,3.2078,2674.3,2673.5,4.881]
[1727105846995,0.73267,2673.9,2673.6,0.374]
[1727105847191,0.37398,2673.8,2673.5,8.46281]
[1727105847490,0.37399,2673.7,2673.4,2.88402]
[1727105847696,0.374,2673.6,2673.5,3.2078]
[1727105847894,0.37399,2673.7,2673.5,3.2078]
[1727105848096,0.37398,2673.8,2673.5,3.58181]
[1727105848489,0.3587,2673.9,2673.5,3.2078]
[1727105849093,0.3587,2673.9,2673.5,3.58181]
[1727105849290,0.37398,2673.8,2673.5,0.37402]
[1727105849487,0.37398,2673.8,2673.5,3.58182]
[1727105849691,0.374,2673.6,2673.5,3.2078]
[1727105849891,0.37399,2673.7,2673.5,3.2078]
[1727105850094,0.37399,2673.7,2673.5,3.58181]
[1727105850397,0.37399,2673.7,2673.5,3.2078]
[1727105851394,0.37399,2673.7,2673.5,3.58182]
[1727105851898,0.374,2673.6,2673.5,3.2078]
[1727105853400,0.374,2673.6,2673.0,0.37409]
[1727105853401,0.37407,2673.2,2673.0,0.37409]
[1727105853895,0.93509,2673.4,2673.0,0.37408]
[1727105854099,0.93509,2673.4,2672.8,3.2078]
[1727105854100,0.37407,2673.2,2672.8,3.2078]
[1727105854495,0.37408,2673.1,2672.8,3.58191]
[1727105855195,0.37404,2673.4,2672.8,3.2078]
[1727105855396,0.935,2673.7,2673.3,0.37404]
[1727105855597,0.93495,2673.8,2673.1,5.7178]
[1727105855899,0.37402,2673.5,2673.3,0.37404]
[1727105856199,0.37403,2673.4,2673.2,1.13125]
[1727105856399,0.37404,2673.4,2673.2,0.74876]
[1727105856607,0.93495,2673.8,2673.2,0.3747]
[1727105856608,0.37405,2673.3,2673.2,0.3747]
[1727105856791,0.93504,2673.6,2673.2,0.3747]
[1727105856996,0.37404,2673.4,2673.2,0.74876]
[1727105857802,0.93504,2673.6,2673.2,0.3747]
[1727105858311,0.37404,2673.4,2673.2,0.74876]
[1727105858603,0.93504,2673.6,2673.2,0.3747]
[1727105859103,1.30936,2672.9,2672.8,3.2078]
[1727105859603,0.3741,2672.9,2672.8,3.2078]
[1727105860299,1.67681,2673.1,2672.8,3.2078]
[1727105860492,0.3741,2673.0,2672.8,3.58191]
[1727105860691,0.3741,2672.9,2672.8,3.58191]
[1727105860893,0.3741,2672.9,2672.8,3.2078]
[1727105861299,0.3741,2672.9,2672.8,3.58192]
[1727105861692,0.37409,2673.0,2672.8,3.58192]
[1727105861900,0.37409,2673.0,2672.9,0.3741]
[1727105862100,0.93515,2673.3,2672.8,3.2078]
[1727105862101,0.37405,2673.3,2672.8,3.2078]
[1727105862305,0.93508,2673.5,2673.3,0.37404]
[1727105862306,0.37403,2673.5,2673.3,0.37404]
[1727105862504,0.37403,2673.5,2673.1,3.2078]
[1727105862505,0.37401,2673.6,2673.4,0.37402]
[1727105862801,0.37401,2673.6,2673.2,0.3813]
[1727105863298,0.37402,2673.5,2673.2,0.3813]
[1727105863501,0.3703,2673.7,2673.4,0.37403]
[1727105863804,0.37401,2673.6,2673.5,0.37402]
[1727105865003,0.37401,2673.6,2673.2,0.3813]
[1727105865004,0.37402,2673.5,2673.3,0.37404]
[1727105865312,1.34305687,2674.2,2673.4,6.65289]
[1727105865497,2.85820809,2674.4,2673.9,2.51]
[1727105865498,0.96912687,2674.4,2673.9,2.51]
[1727105865693,1.32672687,2674.5,2674.2,0.37391]
[1727105865892,1.32672687,2674.5,2673.9,2.9039]
[1727105866296,1.32672687,2674.5,2674.1,0.37393]
[1727105866297,0.37391,2674.3,2674.1,0.37393]
[1727105866598,1.32672687,2674.5,2673.9,3.27785]
[1727105866798,0.37394,2674.1,2673.9,0.76785]
[1727105868705,0.96912687,2674.2,2673.9,3.6017]
[1727105869002,0.37393,2674.1,2673.9,0.76786]
[1727105869203,0.37393,2674.1,2673.9,3.97566]
[1727105869393,0.37391,2674.3,2673.9,3.6017]
[1727105869598,0.37391,2674.3,2674.2,0.37392]
[1727105869806,0.37392,2674.2,2674.1,0.37392]
[1727105870197,0.37393,2674.1,2674.0,0.37394]
[1727105870400,1.90387687,2674.4,2674.0,0.37394]
[1727105870401,1.90388687,2674.4,2674.0,0.37394]
[1727105870599,0.37393,2674.1,2674.0,0.37394]
[1727105870798,0.37393,2674.1,2673.9,3.58175]